Cogmind - Beta 13 @@@ ROGUE MODE // 2024.06.12 @ 23:23:51 Player: ZergFTW Result: Destroyed by as-12569 with Assembled Rifle Performance ------------- Evolutions (0) 0 Regions Visited (4) 800 Robots Destroyed (39) 195 Value Destroyed (717) 717 Prototype IDs (1) 20 Alien Tech Used (0) 0 Bonus (314) 314 TOTAL SCORE: 2046 Bonus ------- Follower Combat Kills 14 Aligned with FarCom 300 Cogmind --------- Core Integrity 0/250 Matter 280/300 Energy 100/100 System Corruption 0% Temperature Cool (0) Movement Flying (120) Ox1 Location -9/Mines Parts ------- > --- POWER (1) -------- (None) > --- PROPULSION (2) --- Flight Unit > --- UTILITY (2) ------ Structural Scanner Sensor Array > --- WEAPON (2) ------- Grenade Launcher Longsword +1 > --- INVENTORY (5) ---- Light Nuclear Core Flight Unit Experimental Sensor Array Mining Claw Peak State ------------ > --- POWER ------------ Light Ion Engine > --- PROPULSION ------- Flight Unit Flight Unit > --- UTILITY ---------- Structural Scanner Sensor Array > --- WEAPON ----------- Mining Claw Longsword +1 > --- INVENTORY -------- Light Nuclear Core Flight Unit Experimental Sensor Array Grenade Launcher [Rating: 15] Favorites ----------- Power Light Ion Engine Engine Light Ion Engine Propulsion Hover Unit Leg Aluminum Leg Wheel Wheel Hover Unit Hover Unit Flight Unit Flight Unit Utility Sensor Array Device Sensor Array Storage Small Storage Unit Weapon Mining Claw Ballistic Gun Light Assault Rifle Launcher Grenade Launcher Special Weapon Mining Laser Slashing Weapon Mining Claw Build | -11 -10 -10 -10 -9 ------- Run | Yrd Mat Min Exi Min Slots Evolved . | . . . . . Power . | . . . . . Propulsion . | . . . . . Utility . | . . . . . Weapon . | . . . . . Parts Attached 54 | 8 22 20 1 3 Power 4 | 1 1 2 . . Engine 4 | 1 1 2 . . Core . | . . . . . Reactor . | . . . . . Propulsion 14 | 3 3 7 . 1 Treads . | . . . . . Leg 1 | . . 1 . . Wheel 4 | 3 . 1 . . Hover 4 | . 3 1 . . Flight 5 | . . 4 . 1 Utility 7 | 2 3 2 . . Device 6 | 1 3 2 . . Storage 1 | 1 . . . . Processor . | . . . . . Hackware . | . . . . . Protection . | . . . . . Artifact . | . . . . . Weapon 29 | 2 15 9 1 2 Energy Gun . | . . . . . Energy Cannon . | . . . . . Ballistic Gun 7 | 2 2 3 . . Ballistic Cannon . | . . . . . Launcher 10 | . 5 4 . 1 Special Weapon 2 | . 2 . . . Impact Weapon . | . . . . . Slashing Weapon 10 | . 6 2 1 1 Piercing Weapon . | . . . . . Special Melee Weapon . | . . . . . Unidentified Prototypes 1 | . . . 1 . Parts Lost 9 | . 1 5 . 3 Power 2 | . . 1 . 1 Propulsion 4 | . . 2 . 2 Utility 2 | . 1 1 . . Weapon 1 | . . 1 . . Highest Loss Streak 5 | . 1 5 . 2 To Critical Strikes . | . . . . . Average Slot Usage (%) 94 | . 97 90 88 82 Engine 13 | . 14 12 14 14 Wheel 4 | . 6 1 . . Hover 13 | . 21 2 . . Flight 9 | . . 20 28 25 Device 23 | . 22 24 28 28 Storage 2 | . 3 . . . Ballistic Gun 5 | . 4 9 3 . Launcher 6 | . 10 2 . . Slashing Weapon 12 | . 11 14 14 14 Naked Turns . | . . . . . Heaviest Build 15 | 14 15 11 8 8 Greatest Support 26 | 26 20 12 8 8 Greatest Overweight (x) 4 | 1 4 1 . . Average Overweight (x) . | . . . . . Largest Inventory Capacity 8 | 8 8 5 5 5 Average Capacity 5 | 6 5 5 5 5 Most Carried 8 | 8 8 5 5 5 Average Carried 5 | 4 5 4 4 4 Final Capacity 8 | 8 5 5 5 5 Final Carried 8 | 8 5 5 5 4 Class Distribution -------------------- 64% | Mutant 30% | Scavenger-Mutant 4% | Scavenger-Scout Dominant Class ---------------- Mutant | -10/Materials Scavenger-Mutant | -10/Mines Scavenger-Mutant | -10/Exiles Scavenger-Scout | -9/Mines Resources | -11 -10 -10 -10 -9 ----------- Run | Yrd Mat Min Exi Min Matter Collected 1045 | 308 420 194 . 123 Remotely . | . . . . . Salvage Created 1144 | 146 388 500 . 110 Parts 84 | 13 32 31 . 8 Haulers Intercepted 1 | . 1 . . . Recyclers Shooed 1 | . 1 . . . Parts Field Recycled . | . . . . . Retrieved Matter . | . . . . . Parts Self-Destructed . | . . . . . Prevented . | . . . . . Kills | -11 -10 -10 -10 -9 ------- Run | Yrd Mat Min Exi Min Combat Hostiles Destroyed 20 | . 8 8 . 4 Melee 7 | . 2 2 . 3 Cannons 1 | . 1 . . . AOE 12 | . 5 6 . 1 Classes Destroyed 9 | 2 6 . . 1 Builder 7 | . 4 3 . . Tunneler 4 | 3 1 . . . Hauler 1 | . 1 . . . Recycler 5 | 1 1 3 . . Operator 1 | . 1 . . . Watcher 2 | . 2 . . . Swarmer 6 | . 3 3 . . Grunt 13 | . 5 5 . 3 Assembled 1 | . . . . 1 Best Kill Streak 5 | 2 5 4 . 3 Combat Bots Only 3 | . 3 3 . 3 Max Kills in Single Turn 3 | 1 3 2 . 1 Gunslinging . | . . . . . Exploded 2 | . 2 2 . 1 Melee 1 | . 1 1 . 1 Uniques/NPCs Destroyed . | . . . . . Combat | -11 -10 -10 -10 -9 -------- Run | Yrd Mat Min Exi Min Hostile Shots Fired 75 | . 25 38 . 12 Missed 22 | . 8 11 . 3 Damage Taken 796 | . 227 405 . 164 Core 253 | . 75 128 . 50 Absorbed by Shields . | . . . . . Regen/Repaired (Parts) 20 | . 20 . . . Core Remaining (%) 100 | 100 . . . . Volleys Fired 40 | 7 23 8 . 2 Largest 2 | 2 2 2 . 1 Hottest 120 | 40 120 60 . 30 Shots Fired 66 | 14 39 11 . 2 Gun 31 | 14 15 2 . . Cannon . | . . . . . Launcher 28 | . 17 9 . 2 Special 7 | . 7 . . . Kinetic 31 | 14 15 2 . . Thermal 7 | . 7 . . . Explosive 28 | . 17 9 . 2 Electromagnetic . | . . . . . Robot Hit Streak 6 | 3 4 6 . . Robot Miss Streak 3 | 2 3 . . . Penetration Max . | . . . . . Secondary Targets . | . . . . . Shots Hit Robots 53 | 6 27 15 . 5 Core Hits 52 | 5 23 19 . 5 Critical Kills . | . . . . . Critical Parts Destroyed . | . . . . . Critical Strikes . | . . . . . Melee Attacks 60 | . 28 27 . 5 Impact . | . . . . . Slashing 60 | . 28 27 . 5 Piercing . | . . . . . Sneak Attacks 8 | . 3 4 . 1 Combat Hostiles 1 | . . . . 1 Follow-up Attacks . | . . . . . Damage Inflicted 2388 | 64 1159 815 . 350 Guns 181 | 64 107 10 . . Cannons . | . . . . . Explosions 1175 | . 682 380 . 113 Melee 984 | . 322 425 . 237 Ramming . | . . . . . Kinetic 181 | 64 107 10 . . Thermal 48 | . 48 . . . Explosive 1175 | . 682 380 . 113 Electromagnetic . | . . . . . Impact . | . . . . . Slashing 984 | . 322 425 . 237 Piercing . | . . . . . Highest Corruption . | . . . . . Average Corruption . | . . . . . Corruption Purged . | . . . . . Corruption Blocked . | . . . . . Overload Shots . | . . . . . Overflow Damage 111 | . 44 48 . 19 Projectiles . | . . . . . Explosions 67 | . 31 17 . 19 Melee 44 | . 13 31 . . Knockbacks . | . . . . . Impact . | . . . . . Kinetic . | . . . . . Secondary . | . . . . . Self-Inflicted Damage 143 | . 48 55 . 40 Shots 5 | . 2 2 . 1 Rammed . | . . . . . Targets Rammed . | . . . . . Kicked . | . . . . . Crushed . | . . . . . Highest Temperature 94 | . 94 30 . 9 Average Temperature 24 | . 27 13 . 9 Received Heat Transfer 333 | . 84 174 . 75 Siege Activations . | . . . . . Robots Corrupted . | . . . . . Combat Hostiles . | . . . . . Parts Fried . | . . . . . Impact Corruptions . | . . . . . Robots Melted . | . . . . . Combat Hostiles . | . . . . . Parts Melted . | . . . . . Heat Transferred 100 | . 100 . . . Parts Sabotaged . | . . . . . Parts Stolen . | . . . . . Parts Stripped . | . . . . . Power Chain Reactions . | . . . . . Alert | -11 -10 -10 -10 -9 ------- Run | Yrd Mat Min Exi Min Peak Influence 330 | 20 322 330 . 91 Initial 13 | . 13 . . . Average 147 | 9 147 200 . 69 Maximum Alert Level 1 | . 1 1 . . Low Security (%) 64 | 100 62 52 . 100 Level 1 35 | . 37 47 . . Level 2 . | . . . . . Level 3 . | . . . . . Level 4 . | . . . . . Level 5 . | . . . . . High Security . | . . . . . Max Security . | . . . . . Squads Dispatched 2 | . 2 . . . Investigation 1 | . 1 . . . Extermination . | . . . . . Reinforcement 1 | . 1 . . . Assault . | . . . . . Garrison . | . . . . . Intercept . | . . . . . Searches Triggered . | . . . . . Construction Impeded . | . . . . . Haulers Reinforced . | . . . . . Active Scanning Responses . | . . . . . Cargo Convoy Interrupts . | . . . . . Stealth | -11 -10 -10 -10 -9 --------- Run | Yrd Mat Min Exi Min Distress Signals 2 | . . 2 . . Communications Jammed . | . . . . . Distress Signals . | . . . . . Times Spotted 37 | . 20 11 . 6 Peak Tracking Total 5 | . 4 3 . 5 Tactical Retreats 3 | . 2 1 . . Traps | -11 -10 -10 -10 -9 ------- Run | Yrd Mat Min Exi Min Traps Triggered . | . . . . . Indirectly . | . . . . . Trap Hack Attempts . | . . . . . Triggered . | . . . . . Disarmed . | . . . . . Reprogrammed . | . . . . . Reused . | . . . . . Traps Extracted . | . . . . . Installed . | . . . . . Triggered . | . . . . . Machines | -11 -10 -10 -10 -9 ---------- Run | Yrd Mat Min Exi Min Machines Disabled 2 | . 1 . . 1 Max in Single Turn 1 | . 1 . . 1 Machines Repaired . | . . . . . Machines Dismantled . | . . . . . Machines Sabotaged . | . . . . . Overloaded Fab Kills . | . . . . . Hacking | -11 -10 -10 -10 -9 --------- Run | Yrd Mat Min Exi Min Machines Accessed 8 | . 7 . 1 . Terminals 5 | . 5 . . . Fabricators . | . . . . . Repair Stations 1 | . 1 . . . Recycling Units 1 | . 1 . . . Scanalyzers . | . . . . . Garrison Access . | . . . . . Total Hacks 16 | . 15 . 1 . Successful 12 | . 11 . 1 . Failed 4 | . 4 . . . Catastrophic 1 | . 1 . . . Database Lockouts . | . . . . . Manual 1 | . . . 1 . Terminals 12 | . 12 . . . Fabricators . | . . . . . Repair Stations 2 | . 2 . . . Recycling Units 1 | . 1 . . . Scanalyzers . | . . . . . Garrison Access . | . . . . . Terminal Hacks 9 | . 8 . 1 . Record 1 | . . . 1 . Branch Access Points 1 | . 1 . . . Terminal Index 1 | . 1 . . . Repair Station Index 1 | . 1 . . . Unreport Threat 1 | . 1 . . . Locate Traps 1 | . 1 . . . Recall Investigation 1 | . 1 . . . Zone Layout 2 | . 2 . . . Fabricator Hacks . | . . . . . Repair Station Hacks 2 | . 2 . . . Scan Component 1 | . 1 . . . Repair 1 | . 1 . . . Recycling Unit Hacks 1 | . 1 . . . Report Inventory 1 | . 1 . . . Scanalyzer . | . . . . . Garrison Access Hacks . | . . . . . Unauthorized Hacks . | . . . . . Terminals . | . . . . . Fabricators . | . . . . . Repair Stations . | . . . . . Recycling Units . | . . . . . Scanalyzers . | . . . . . Garrison Access . | . . . . . Data Cores Recovered . | . . . . . Used . | . . . . . Hacking Detections 3 | . 3 . . . Full Trace Events 1 | . 1 . . . Feedback Events . | . . . . . Feedback Blocked . | . . . . . Robot Schematics Acquired . | . . . . . Robots Built . | . . . . . Authchips . | . . . . . Time . | . . . . . Total Robot Build Rating . | . . . . . Part Schematics Acquired . | . . . . . Parts Built . | . . . . . Authchips . | . . . . . Time . | . . . . . Total Part Build Rating . | . . . . . Parts Repaired 1 | . 1 . . . Time 26 | . 26 . . . Parts Recycled . | . . . . . Recycled Matter . | . . . . . Retrieved Matter . | . . . . . Retrieved Components . | . . . . . Parts Scanalyzed . | . . . . . Part Schematics Acquired . | . . . . . Parts Damaged . | . . . . . Bothacking | -11 -10 -10 -10 -9 ------------ Run | Yrd Mat Min Exi Min Used RIF Installer . | . . . . . Robots Hacked . | . . . . . Non-combat . | . . . . . Combat . | . . . . . Robot Hacks Applied . | . . . . . Relay Couplers Released . | . . . . . Fabnet Peak Effective % . | . . . . . Robots Rewired . | . . . . . Allies Hacked . | . . . . . Hacks Repelled . | . . . . . Allies | -11 -10 -10 -10 -9 -------- Run | Yrd Mat Min Exi Min Total Allies 1 | . . 1 . . Largest Group 1 | . . 1 1 . Highest-Rated Group 31 | . . 31 31 . Highest-Rated Ally 31 | . . 31 31 . Total Orders . | . . . . . Ally Attacks 10 | . . 10 . . Total Damage 84 | . . 84 . . Kills 2 | . . 2 . . Allies Corrupted . | . . . . . Allies Melted . | . . . . . Intel | -11 -10 -10 -10 -9 ------- Run | Yrd Mat Min Exi Min Robot Analysis Total . | . . . . . Derelict Logs Recovered 3 | . . 2 . 1 Drone Launches . | . . . . . Drone Recoveries . | . . . . . Exploration | -11 -10 -10 -10 -9 ------------- Run | Yrd Mat Min Exi Min Turns Passed 1657 | 90 928 343 230 66 Spaces Moved 2157 | 58 943 430 606 120 Core 19 | 15 1 3 . . Treads . | . . . . . Legs 1 | . . 1 . . Wheels 218 | 43 175 . . . Hover 791 | . 767 24 . . Flight 1128 | . . 402 606 120 Fastest Speed 37 | 50 56 37 37 37 Average Speed 49 | 75 62 41 37 37 Slowest Speed 250 | 100 250 125 37 37 Overloaded Moves . | . . . . . Propulsion Burnouts . | . . . . . Robots Hopped . | . . . . . Cave-ins Triggered . | . . . . . Exploration Rate (%) 55 | 4 97 59 91 24 Regions Visited 4 Branch Regions 3 Pre-discovered Areas 3 | . . 2 . 1 Known Exits Taken 2 | . 1 1 . . Unknown Exits Taken 2 | 1 . . 1 . Scrap Searched 1 | . . . . 1 Spaces Dug 40 | . 14 26 . . Terrain Destroyed 163 | . 93 64 . 6 Melee 16 | . 12 4 . . Projectile 5 | . 5 . . . AOE 142 | . 76 60 . 6 Terrain Rammed . | . . . . . Walls Destroyed . | . . . . . Machines Disabled . | . . . . . Actions | -11 -10 -10 -10 -9 --------- Run | Yrd Mat Min Exi Min Total 2540 | 91 1174 527 612 136 Wait 168 | . 140 28 . . Move 2153 | 57 942 429 605 120 Hop . | . . . . . Pick Up 33 | 16 7 5 2 3 Fast Attach 12 | 2 4 6 . . Attach 13 | 5 2 3 . 3 Detach 5 | . 1 2 1 1 Swap 29 | 1 16 11 1 . Drop 28 | 3 12 8 3 2 Fire 40 | 7 23 8 . 2 Melee 59 | . 27 27 . 5 Ram . | . . . . . Kick . | . . . . . Crush . | . . . . . Escape Stasis . | . . . . . Rewire . | . . . . . Trap . | . . . . . Miscellaneous . | . . . . . Route ------- -11/Scrapyard -10/Materials (discovered 5 exits: [*Mat x3] / *Min x2) -10/Mines (discovered 2 exits: [*Mat] / *Exi) -10/Exiles (discovered 2 exits: [*Min x2]) -9/Mines History --------- Turn | Location | Event 25 | -11/Scrapyard | Discovered new exit (range 14) 91 | -11/Scrapyard | Entered Materials 178 | -10/Materials | Discovered new exit (range 14) 275 | -10/Materials | Discovered new exit (range 16) 292 | -10/Materials | Discovered new exit (range 13) 334 | -10/Materials | Build established: Mutant 494 | -10/Materials | Discovered new exit (range 15) 624 | -10/Materials | Repaired Hover Unit? 838 | -10/Materials | Identified exit to Mines 841 | -10/Materials | Discovered new exit (range 15) 1019 | -10/Materials | Entered Mines 1040 | -10/Mines | Core integrity fell below 50% 1078 | -10/Mines | Discovered new exit (range 8) 1082 | -10/Mines | Lost 5 parts (1p2n1u1w) 1171 | -10/Mines | Learned location of Storage (-8) 1234 | -10/Mines | Escorted by a lone wolf Derelict 1240 | -10/Mines | Core integrity fell below 20% 1296 | -10/Mines | Identified exit to Exiles 1341 | -10/Mines | Found a damaged Exp. Sensor Array with a note attached 1342 | -10/Mines | Found Prototype Device 1345 | -10/Mines | Deemed a non-threat by the Exiles lab entrance 1362 | -10/Mines | Entered Exiles 1362 | -10/Exiles | Accompanied by 1 ally 1378 | -10/Exiles | Met 8R-AWN 1381 | -10/Exiles | Build established: Scavenger-Mutant 1385 | -10/Exiles | Met EX-HEX 1395 | -10/Exiles | Met EX-BIN 1400 | -10/Exiles | Aligned with FarCom system 1401 | -10/Exiles | Given EX-Vault access code 1409 | -10/Exiles | Opened EX-Vault 1417 | -10/Exiles | Found Prototype Slashing Weapon 1418 | -10/Exiles | Identified Longsword +1 1431 | -10/Exiles | Warned to stay clear of 0b10 Research branches 1459 | -10/Exiles | Met EX-DEC 1468 | -10/Exiles | Visited The Gauntlet 1536 | -10/Exiles | Discovered new exit (range 14) 1587 | -10/Exiles | Discovered new exit (range 15) 1592 | -10/Exiles | Left Exiles lab with Longsword +1 1592 | -10/Exiles | Entered Mines 1612 | -9/Mines | Learned location of Zion (-7) 1623 | -9/Mines | Assembled infested the area 1628 | -9/Mines | Assisted by a Guerilla fighting off Assembled 1658 | -9/Mines | Destroyed by as-12569 with Assembled Rifle Last Messages --------------- 01612_ Found Propulsion Shielding. 01612_ Found 16 Matter. 01613_ Acquired 13 matter. 01614_ Dropped Flight Unit. 01615_ Acquired Hover Unit. 01623_ ALERT: Infestation in the mines, dispatching Demolisher response squad. 01628_ A derelict emerges from the shadows: "You need to get out of here! I've been tracking a group of Assembled to figure out where they're coming from, and they're closing on this area, come on!" 01629_ Dropped Hover Unit. 01630_ Acquired Flight Unit. 01640_ HV Slug penetrates as-13908. 01640_ as-13908 suffers critical hit (Destroy). 01654_ Pressure Siphon disabled. 01656_ Flight Unit destroyed. 01656_ Destroyed Flight Unit. 01656_ Lgt. Ion Engine destroyed. 01656_ Destroyed Lgt. Ion Engine. 01656_ Destroyed Asb. Hover Unit. Map ----- +----------------------------------------------------+ | ??????## ###? ##???????????????????????? | | ???##### #### #### ##???????????????????????? | | ???##### ##### ### ##???????????????????????? | | ???## ### ## ##???????????????????????? | | ???## = #### #$! ???????????????????????? | | ???## * ! ##### # ! ???????????????????????? | | ???## [ [![ # # ##???????????????????????? | | ???##########] ##% ##???????????????????????? | | ???##########%=####### %##???????????????????????? | | ?????########[!####### ##???????????????????????? | | ????######### ####?## *####?????????????????????? | | ???#### ## ####### #####????????????????????? | | ???### ##### ####???????????????????? | | ???## ### ###???????????????????? | | ???## ## ##???????????????????? | | ???### #### ##???????????????????? | | ???############ """" ##???????????????????? | | ????#######?###### """"a ##???????????????????? | | ??????????######### " ####??????????????????? | | ?????????########## ####?????????????????? | | ?????????### #### ###?????????????????? | | ?????????## ## ##?????????????????? | | ????????### ##?????????????????? | | ???????#### ### a ##?????????????????? | | ???????### ######## ##?????????????????? | | ???????## ######### @ ###?????????????????? | | ???????## ####????## ###?????????????????? | | ???????### ###?????## ###??????????????????? | | ???????#### ###??????## ###??????????????????? | | ????????########??????### ###???????????????????? | | ?????????######???????########???????????????????? | | ???????????????????????######????????????????????? | | ?????????????????????????????????????????????????? | | ?????????????????????????????????????????????????? | | ?????????????????????????????????????????????????? | | | | | | | | | | | | | | | | | | | | | | | | | | | | | | | +----------------------------------------------------+ Best States ------------- Heat Dissipation 25 Energy Generation 10 Energy Capacity 250 Matter Stores 300 Matter Capacity 300 Sight Range 16 Robot Scan Range 14 Terrain Scan Range 14 Terrain Scan Density 10 Evasion (%) 62 Item Schematics ----------------- None Robot Schematics ------------------ None Fabricated ------------ Nothing Alien Tech Used ----------------- None Achievements -------------- None Challenges ------------ None Game ------ Seed ConstructEnergyMantle Manual? 0 Play Time 00:42:05 Cumulative 17.1 hours Start 2024.06.12 @ 22:39:31 End 2024.06.12 @ 23:23:51 Sessions 1 Manual Loads 0 Difficulty Rogue Special Mode None Game No. 14 Rogue 13 Adventurer 1 Explorer 0 Win Type - Total 0 Types 0/0/0/0/0/0/0/0/0 Lore% 14 Gallery% 10 Achievement% 15 Wizard Run 0 Options --------- Layout 1 ASCII 0 Keyboard 0 Movement Mouse Keybinds 0 Fullscreen 2 Font 24/Proggy Map View 76x35 Zoom Use 0% Tactical HUD 1 Map Filters NONE Filters NONE Steam 1 RUN: 01e9e1ec-e786-442e-b12b-c03f4bb7dbc1